fUSD/lending_fUSD_20241123
["ID","MTS","AMOUNT","RATE_DAILY","PERIOD"]
[343090494,1732345833520,-812.1,0.00051854,2]
[343090495,1732345833529,-100241.6574,0.00051976,2]
[343090496,1732345833539,-1009.8197,0.00051976,2]
[343090497,1732345833549,-31598.5189,0.00051976,2]
[343090498,1732345833559,-380.47470734,0.00051999,10]
[343090499,1732345833569,-1428.018,0.00051999,94]
[343090500,1732345833578,-161.061,0.00051999,94]
[343090501,1732345833588,-1000.0,0.00052075,30]
[343090502,1732345833598,-2820.76779517,0.00052118,15]
[343090503,1732345833607,-438.04942443,0.00052136,15]
[343090504,1732345833617,-418.31989968,0.00052174,120]
[343090505,1732345833629,-165.49668888,0.00052217,28]
[343090506,1732345833638,-1939.83745081,0.00052319,51]
[343090507,1732345833648,-250.5163,0.00052324,30]
[343090508,1732345833657,-291.6554,0.00052324,2]
[343090509,1732345833667,-1649.03697,0.0005241,61]
[343090510,1732345833677,-30000.0,0.00052418,2]
[343090511,1732345833687,-10000.0,0.00052419,120]
[343090512,1732345833697,-10000.0,0.00052419,120]
[343090513,1732345833707,-3000.0,0.00052419,30]
[343090514,1732345833717,-418.31989968,0.00052482,120]
[343090515,1732345833726,-876.2016,0.00052502,2]
[343090516,1732345833736,-3726.2539,0.00052502,2]
[343090517,1732345833747,-3296.223,0.00052502,2]
[343090518,1732345833756,-1000.0,0.00052601,30]
[343090519,1732345833766,-1000.0,0.00052601,30]
[343090520,1732345833775,-279.8225,0.00052601,30]
[343090521,1732345833785,-503.63172226,0.00052602,120]
[343090522,1732345833794,-503.67960735,0.00052602,120]
[343090523,1732345833803,-200.0,0.00052602,15]
[343090524,1732345833813,-645.93406568,0.00052602,120]
[343090525,1732345833823,-500.0,0.00052602,120]
[343090526,1732345833833,-500.0,0.00052602,120]
[343090527,1732345833843,-500.0,0.00052602,120]
[343090528,1732345833853,-500.0,0.00052602,120]
[343090529,1732345833863,-181.33223327,0.00052602,120]
[343090530,1732345833873,-500.0,0.00052602,120]
[343090531,1732345833886,-500.0,0.00052602,120]
[343090532,1732345833896,-514.05,0.00052602,120]
[343090533,1732345833905,-514.05,0.00052602,120]
[343090534,1732345833916,-514.05,0.00052602,120]
[343090535,1732345833925,-514.05,0.00052602,120]
[343090536,1732345833935,-514.05,0.00052602,120]
[343090537,1732345833945,-500.0,0.00052602,120]
[343090538,1732345833954,-500.0,0.00052602,120]
[343090539,1732345833964,-500.0,0.00052602,120]
[343090540,1732345833974,-500.0,0.00052602,120]
[343090541,1732345833983,-500.0,0.00052602,120]
[343090542,1732345833993,-249.57259193,0.00052602,120]
[343090543,1732345834003,-500.0,0.00052602,120]
[343090544,1732345834012,-500.0,0.00052602,120]
[343090545,1732345834022,-500.0,0.00052602,120]
[343090546,1732345834033,-500.0,0.00052602,120]
[343090547,1732345834043,-500.0,0.00052602,120]
[343090548,1732345834053,-500.0,0.00052602,120]
[343090549,1732345834063,-187.34069941,0.00052602,120]
[343090550,1732345834073,-500.56142866,0.00052602,120]
[343090551,1732345834083,-504.10388503,0.00052602,120]
[343090552,1732345834093,-518.77359287,0.00052602,120]
[343090553,1732345834103,-500.0,0.00052602,120]
[343090554,1732345834113,-500.0,0.00052602,120]
[343090555,1732345834122,-957.15,0.00052602,120]
[343090556,1732345834133,-957.15,0.00052602,120]
[343090557,1732345834143,-563.05,0.00052602,120]
[343090558,1732345834152,-563.05,0.00052602,120]
[343090559,1732345834162,-500.0,0.00052602,120]
[343090560,1732345834171,-500.0,0.00052602,120]
[343090561,1732345834181,-501.44421857,0.00052602,120]
[343090562,1732345834191,-500.0,0.00052602,120]
[343090563,1732345834200,-500.0,0.00052602,120]
[343090564,1732345834209,-520.19768374,0.00052602,120]
[343090565,1732345834219,-536.24,0.00052602,120]
[343090566,1732345834228,-536.24,0.00052602,120]
[343090567,1732345834238,-500.0,0.00052602,120]
[343090568,1732345834247,-566.21146803,0.00052602,120]
[343090569,1732345834257,-500.0,0.00052602,120]
[343090570,1732345834267,-563.8082347,0.00052602,120]
[343090571,1732345834276,-500.0,0.00052602,120]
[343090572,1732345834286,-535.67383688,0.00052602,120]
[343090573,1732345834295,-500.0,0.00052602,120]
[343090574,1732345834305,-535.3673393,0.00052602,120]
[343090575,1732345834314,-311.85636117,0.00052602,120]
[343090576,1732345834323,-309.11903486,0.00052602,120]
[343090577,1732345834333,-500.0,0.00052602,120]
[343090578,1732345834343,-505.23786285,0.00052602,120]
[343090579,1732345834352,-557.07881044,0.00052602,120]
[343090580,1732345834361,-500.0,0.00052602,120]
[343090581,1732345834370,-500.0,0.00052602,120]
[343090582,1732345834381,-500.0,0.00052602,120]
[343090583,1732345834392,-509.54043777,0.00052602,120]
[343090584,1732345834402,-500.0,0.00052602,120]
[343090585,1732345834412,-500.0,0.00052602,120]
[343090586,1732345834421,-507.71128486,0.00052602,120]
[343090587,1732345834431,-502.33531809,0.00052602,120]
[343090588,1732345834440,-574.00048378,0.00052602,120]
[343090589,1732345834450,-508.76762593,0.00052602,120]
[343090590,1732345834461,-500.0,0.00052602,120]
[343090591,1732345834471,-517.21734189,0.00052602,120]
[343090592,1732345834482,-502.32358326,0.00052602,120]
[343090593,1732345834491,-500.0,0.00052602,120]
[343090594,1732345834501,-500.0,0.00052602,120]
[343090595,1732345834511,-500.0,0.00052602,120]
[343090596,1732345834521,-500.0,0.00052602,120]
[343090597,1732345834531,-500.0,0.00052602,120]
[343090598,1732345834540,-512.07262729,0.00052602,120]
[343090599,1732345834550,-534.91,0.00052602,120]
[343090600,1732345834562,-529.78359528,0.00052602,120]
[343090601,1732345834572,-521.754751,0.00052602,120]
[343090602,1732345834582,-500.0,0.00052602,120]
[343090603,1732345834591,-512.67538821,0.00052602,120]
[343090604,1732345834601,-500.0,0.00052602,120]
[343090605,1732345834611,-500.0,0.00052602,120]
[343090606,1732345834621,-500.0,0.00052602,120]
[343090607,1732345834635,-512.53131054,0.00052602,120]
[343090608,1732345834645,-561.37841097,0.00052602,120]
[343090609,1732345834655,-518.29502327,0.00052602,120]
[343090610,1732345834664,-599.46640398,0.00052602,120]
[343090611,1732345834674,-500.0,0.00052602,120]
[343090612,1732345834683,-519.87539532,0.00052602,120]
[343090613,1732345834693,-500.0,0.00052602,120]
[343090614,1732345834702,-500.0,0.00052602,120]
[343090615,1732345834712,-500.0,0.00052602,120]
[343090616,1732345834721,-599.14453062,0.00052602,120]
[343090617,1732345834731,-500.0,0.00052602,120]
[343090618,1732345834741,-254.80466595,0.00052602,120]
[343090619,1732345834751,-507.50948982,0.00052602,120]
[343090620,1732345834760,-500.0,0.00052602,120]
[343090621,1732345834769,-500.0,0.00052602,120]
[343090622,1732345834779,-512.86233753,0.00052602,120]
[343090623,1732345834789,-503.22637909,0.00052602,120]
[343090624,1732345834799,-419.28282004,0.00052602,120]
[343090625,1732345834808,-500.0,0.00052602,120]
[343090626,1732345834817,-500.0,0.00052602,120]
[343090627,1732345834827,-508.2283402,0.00052602,120]
[343090628,1732345834836,-500.0,0.00052602,120]
[343090629,1732345834846,-500.0,0.00052602,120]
[343090630,1732345834857,-500.0,0.00052602,120]
[343090631,1732345834867,-509.36428889,0.00052602,120]
[343090632,1732345834878,-507.60201429,0.00052602,120]
[343090633,1732345834888,-523.71915657,0.00052602,120]
[343090634,1732345834898,-500.0,0.00052602,120]
[343090635,1732345834907,-500.0,0.00052602,120]
[343090636,1732345834916,-500.0,0.00052602,120]
[343090637,1732345834926,-500.0,0.00052602,120]
[343090638,1732345834937,-520.16805056,0.00052602,120]
[343090639,1732345834946,-500.0,0.00052602,120]
[343090640,1732345834955,-500.0,0.00052602,120]
[343090641,1732345834965,-500.0,0.00052602,120]
[343090642,1732345834974,-532.94425483,0.00052602,120]
[343090643,1732345834985,-612.5,0.00052602,120]
[343090644,1732345834994,-612.5,0.00052602,120]
[343090645,1732345835003,-519.85887534,0.00052602,120]
[343090646,1732345835014,-500.0,0.00052602,120]
[343090647,1732345835023,-500.0,0.00052602,120]
[343090648,1732345835034,-500.0,0.00052602,120]
[343090649,1732345835043,-646.18330603,0.00052602,120]
[343090650,1732345835053,-549.13256496,0.00052602,120]
[343090651,1732345835062,-500.0,0.00052602,120]
[343090652,1732345835071,-528.75349713,0.00052602,120]
[343090653,1732345835081,-505.28319121,0.00052602,120]
[343090654,1732345835091,-528.69960404,0.00052602,120]
[343090655,1732345835100,-500.0,0.00052602,120]
[343090656,1732345835110,-531.40143296,0.00052602,120]
[343090657,1732345835120,-500.0,0.00052602,120]
[343090658,1732345835134,-508.79492509,0.00052602,120]
[343090659,1732345835144,-565.28619346,0.00052602,120]
[343090660,1732345835154,-500.0,0.00052602,120]
[343090661,1732345835164,-500.0,0.00052602,120]
[343090662,1732345835174,-593.42,0.00052602,120]
[343090663,1732345835184,-500.0,0.00052602,120]
[343090664,1732345835193,-593.42,0.00052602,120]
[343090665,1732345835203,-593.42,0.00052602,120]
[343090666,1732345835212,-593.42,0.00052602,120]
[343090667,1732345835221,-593.42,0.00052602,120]
[343090668,1732345835231,-499.99585762,0.00052602,120]
[343090669,1732345835240,-584.72,0.00052602,120]
[343090670,1732345835250,-584.72,0.00052602,120]
[343090671,1732345835259,-528.83504555,0.00052602,120]
[343090672,1732345835269,-521.9470697,0.00052602,120]
[343090673,1732345835278,-500.0,0.00052602,120]
[343090674,1732345835287,-1280.96,0.00052602,120]
[343090675,1732345835298,-1280.96,0.00052602,120]
[343090676,1732345835308,-1280.96,0.00052602,120]
[343090677,1732345835465,-1280.96,0.00052602,120]
[343090678,1732345835476,-1280.96,0.00052602,120]
[343090679,1732345835490,-502.02407616,0.00052602,120]
[343090680,1732345835500,-502.93674279,0.00052602,120]
[343090681,1732345835510,-510.52420424,0.00052602,120]
[343090682,1732345835520,-513.10097534,0.00052602,120]
[343090683,1732345835530,-503.99346417,0.00052602,120]
[343090684,1732345835539,-1262.27,0.00052602,120]
[343090685,1732345835549,-1262.27,0.00052602,120]
[343090686,1732345835558,-1262.27,0.00052602,120]
[343090687,1732345835568,-1262.27,0.00052602,120]
[343090688,1732345835578,-500.0,0.00052602,120]
[343090689,1732345835587,-519.12369883,0.00052602,120]
[343090690,1732345835596,-1262.27,0.00052602,120]
[343090691,1732345835605,-151.74147482,0.00052602,120]
[343090692,1732345835614,-503.9070371,0.00052602,120]
[343090693,1732345835623,-394.70151538,0.00052602,120]
[343090694,1732345835636,-553.62,0.00052602,120]
[343090695,1732345835645,-553.62,0.00052602,120]
[343090696,1732345835656,-529.7871819,0.00052602,120]
[343090697,1732345835666,-500.0,0.00052602,120]
[343090698,1732345835675,-1733.93,0.00052602,120]
[343090699,1732345835685,-1733.93,0.00052602,120]
[343090700,1732345835695,-530.77369991,0.00052602,120]
[343090701,1732345835705,-1733.93,0.00052602,120]
[343090702,1732345835714,-1733.93,0.00052602,120]
[343090703,1732345835724,-1733.93,0.00052602,120]
[343090704,1732345835733,-507.24849891,0.00052602,120]
[343090705,1732345835742,-504.72292065,0.00052602,120]
[343090706,1732345835751,-513.66603045,0.00052602,120]
[343090707,1732345835760,-1725.2,0.00052602,120]
[343090708,1732345835769,-1725.2,0.00052602,120]
[343090709,1732345835779,-504.46368649,0.00052602,120]
[343090710,1732345835788,-504.5694792,0.00052602,120]
[343090711,1732345835798,-358.93134564,0.00052602,120]
[343090712,1732345835808,-500.0,0.00052602,120]
[343090713,1732345835817,-500.0,0.00052602,120]
[343090714,1732345835827,-505.35045088,0.00052602,120]
[343090715,1732345835837,-361.67556233,0.00052602,120]
[343090716,1732345835846,-515.33597561,0.00052602,120]
[343090717,1732345835856,-524.21314232,0.00052602,120]
[343090718,1732345835866,-508.19533836,0.00052602,120]
[343090719,1732345835878,-539.34781087,0.00052602,120]
[343090720,1732345835888,-636.35,0.00052602,120]
[343090721,1732345835898,-636.35,0.00052602,120]
[343090722,1732345835908,-636.35,0.00052602,120]
[343090723,1732345835918,-636.35,0.00052602,120]
[343090724,1732345835928,-636.35,0.00052602,120]
[343090725,1732345835938,-520.2227079,0.00052602,120]
[343090726,1732345835947,-505.67596933,0.00052602,120]
[343090727,1732345835957,-503.14113894,0.00052602,120]
[343090728,1732345835967,-515.84059776,0.00052602,120]
[343090729,1732345835976,-528.19207383,0.00052602,120]
[343090730,1732345835986,-517.55761987,0.00052602,120]
[343090731,1732345835995,-526.28186065,0.00052602,120]
[343090732,1732345836006,-500.0,0.00052602,120]
[343090733,1732345836016,-500.0,0.00052602,120]
[343090734,1732345836026,-2207.8,0.00052602,120]
[343090735,1732345836036,-2207.8,0.00052602,120]
[343090736,1732345836046,-2207.8,0.00052602,120]
[343090737,1732345836055,-2207.8,0.00052602,120]
[343090738,1732345836064,-524.20010049,0.00052602,120]
[343090739,1732345836074,-2207.8,0.00052602,120]
[343090740,1732345836083,-920.73,0.00052602,120]
[343090741,1732345836092,-920.73,0.00052602,120]
[343090742,1732345836102,-500.0,0.00052602,120]
[343090743,1732345836112,-510.12468982,0.00052602,120]
[343090744,1732345836121,-512.12298943,0.00052602,120]
[343090745,1732345836132,-370.19146667,0.00052602,120]
[343090746,1732345836142,-509.22684362,0.00052602,120]
[343090747,1732345836151,-511.53124048,0.00052602,120]
[343090748,1732345836160,-520.9897248,0.00052602,120]
[343090749,1732345836170,-1877.82,0.00052602,120]
[343090750,1732345836179,-1877.82,0.00052602,120]
[343090751,1732345836189,-1877.82,0.00052602,120]
[343090752,1732345836199,-1877.82,0.00052602,120]
[343090753,1732345836209,-505.26263605,0.00052602,120]
[343090754,1732345836218,-1877.82,0.00052602,120]
[343090755,1732345836227,-524.7102324,0.00052602,120]
[343090756,1732345836237,-522.05625813,0.00052602,120]
[343090757,1732345836246,-519.91722449,0.00052602,120]
[343090758,1732345836255,-503.34980922,0.00052602,120]
[343090759,1732345836265,-500.0,0.00052602,120]
[343090760,1732345836274,-561.81366365,0.00052602,120]
[343090761,1732345836283,-496.32841745,0.00052602,120]
[343090762,1732345836292,-555.77110626,0.00052602,120]
[343090763,1732345836302,-514.18083077,0.00052602,120]
[343090764,1732345836311,-525.97671548,0.00052602,120]
[343090765,1732345836321,-508.20764602,0.00052602,120]
[343090766,1732345836330,-542.13000404,0.00052602,120]
[343090767,1732345836339,-500.0,0.00052602,120]
[343090768,1732345836348,-408.64023023,0.00052602,120]
[343090769,1732345836358,-527.96822125,0.00052602,120]
[343090770,1732345836367,-523.46930171,0.00052602,120]
[343090771,1732345836377,-347.98742,0.00052602,120]
[343090772,1732345836392,-500.0,0.00052602,120]
[343090773,1732345836402,-500.0,0.00052602,120]
[343090774,1732345836411,-184.98767407,0.00052602,120]
[343090775,1732345836420,-512.94257972,0.00052602,120]
[343090776,1732345836430,-534.91547835,0.00052602,120]
[343090777,1732345836439,-581.28652471,0.00052602,120]
[343090778,1732345836448,-500.0,0.00052602,120]
[343090779,1732345836457,-500.0,0.00052602,120]
[343090780,1732345836468,-470.73127435,0.00052602,120]
[343090781,1732345836480,-720.64,0.00052602,120]
[343090782,1732345836492,-720.64,0.00052602,120]
[343090783,1732345836501,-500.0,0.00052602,120]
[343090784,1732345836511,-500.0,0.00052602,120]
[343090785,1732345836524,-500.0,0.00052602,120]
[343090786,1732345836534,-933.59,0.00052602,120]
[343090787,1732345836543,-933.59,0.00052602,120]
[343090788,1732345836552,-500.0,0.00052602,120]
[343090789,1732345836561,-641.26179343,0.00052602,120]
[343090790,1732345836570,-525.22414477,0.00052602,120]
[343090791,1732345836580,-500.0,0.00052602,120]
[343090792,1732345836589,-500.0,0.00052602,120]
[343090793,1732345836598,-500.0,0.00052602,120]
[343090794,1732345836607,-500.0,0.00052602,120]
[343090795,1732345836616,-1563.68,0.00052602,120]
[343090796,1732345836625,-1563.68,0.00052602,120]
[343090797,1732345836637,-500.0,0.00052602,120]
[343090798,1732345836647,-1563.68,0.00052602,120]
[343090799,1732345836657,-1563.68,0.00052602,120]
[343090800,1732345836667,-1563.68,0.00052602,120]
[343090801,1732345836677,-500.0,0.00052602,120]
[343090802,1732345836686,-515.77,0.00052602,120]
[343090803,1732345836695,-500.0,0.00052602,120]
[343090804,1732345836704,-500.0,0.00052602,120]
[343090805,1732345836715,-500.0,0.00052602,120]
[343090806,1732345836724,-634.72,0.00052602,120]
[343090807,1732345836733,-500.0,0.00052602,120]
[343090808,1732345836743,-634.72,0.00052602,120]
[343090809,1732345836752,-500.0,0.00052602,120]
[343090810,1732345836761,-500.0,0.00052602,120]
[343090811,1732345836771,-500.0,0.00052602,120]
[343090812,1732345836780,-500.0,0.00052602,120]
[343090813,1732345836789,-1744.6,0.00052602,120]
[343090814,1732345836799,-500.0,0.00052602,120]
[343090815,1732345836809,-1744.6,0.00052602,120]
[343090816,1732345836818,-1744.6,0.00052602,120]
[343090817,1732345836828,-1744.6,0.00052602,120]
[343090818,1732345836838,-500.0,0.00052602,120]
[343090819,1732345836847,-1744.6,0.00052602,120]
[343090820,1732345836857,-500.0,0.00052602,120]
[343090821,1732345836868,-1253.8,0.00052602,120]
[343090822,1732345836877,-1253.8,0.00052602,120]
[343090823,1732345836888,-500.0,0.00052602,120]
[343090824,1732345836898,-1253.8,0.00052602,120]
[343090825,1732345836907,-500.0,0.00052602,120]
[343090826,1732345836917,-1253.8,0.00052602,120]
[343090827,1732345836927,-1253.8,0.00052602,120]
[343090828,1732345836936,-500.0,0.00052602,120]
[343090829,1732345836946,-500.0,0.00052602,120]
[343090830,1732345836955,-500.0,0.00052602,120]
[343090831,1732345836965,-500.0,0.00052602,120]
[343090832,1732345836973,-525.82344663,0.00052602,120]
[343090833,1732345836983,-500.0,0.00052602,120]
[343090834,1732345836993,-500.0,0.00052602,120]
[343090835,1732345837003,-500.0,0.00052602,120]
[343090836,1732345837012,-500.0,0.00052602,120]
[343090837,1732345837021,-500.0,0.00052602,120]
[343090838,1732345837031,-500.0,0.00052602,120]
[343090839,1732345837040,-500.0,0.00052602,120]
[343090840,1732345837049,-500.0,0.00052602,120]
[343090841,1732345837059,-500.0,0.00052602,120]
[343090842,1732345837068,-500.0,0.00052602,120]
[343090843,1732345837078,-533.18681993,0.00052602,120]
[343090844,1732345837087,-500.0,0.00052602,120]
[343090845,1732345837096,-500.0,0.00052602,120]
[343090846,1732345837105,-500.0,0.00052602,120]
[343090847,1732345837114,-383.47738048,0.00052602,120]
[343090848,1732345837123,-500.0,0.00052602,120]
[343090849,1732345837134,-500.0,0.00052602,120]
[343090850,1732345837145,-500.0,0.00052602,120]
[343090851,1732345837154,-500.0,0.00052602,120]
[343090852,1732345837163,-500.0,0.00052602,120]
[343090853,1732345837173,-500.0,0.00052602,120]
[343090854,1732345837182,-500.0,0.00052602,120]
[343090855,1732345837192,-500.0,0.00052602,120]
[343090856,1732345837202,-500.0,0.00052602,120]
[343090857,1732345837212,-500.0,0.00052602,120]
[343090858,1732345837222,-500.0,0.00052602,120]
[343090859,1732345837232,-500.0,0.00052602,120]
[343090860,1732345837242,-500.0,0.00052602,120]
[343090861,1732345837253,-501.50977411,0.00052602,120]
[343090862,1732345837263,-500.0,0.00052602,120]
[343090863,1732345837274,-500.0,0.00052602,120]
[343090864,1732345837284,-500.0,0.00052602,120]
[343090865,1732345837294,-500.0,0.00052602,120]
[343090866,1732345837304,-500.0,0.00052602,120]
[343090867,1732345837315,-500.0,0.00052602,120]
[343090868,1732345837326,-500.0,0.00052602,120]
[343090869,1732345837336,-500.0,0.00052602,120]
[343090870,1732345837347,-500.0,0.00052602,120]
[343090871,1732345837356,-500.0,0.00052602,120]
[343090872,1732345837366,-500.0,0.00052602,120]
[343090873,1732345837375,-500.0,0.00052602,120]
[343090874,1732345837388,-500.0,0.00052602,120]
[343090875,1732345837397,-500.0,0.00052602,120]
[343090876,1732345837406,-540.74850581,0.00052602,120]
[343090877,1732345837415,-500.0,0.00052602,120]
[343090878,1732345837424,-500.0,0.00052602,120]
[343090879,1732345837434,-500.0,0.00052602,120]
[343090880,1732345837443,-511.72990047,0.00052602,120]
[343090881,1732345837452,-500.0,0.00052602,120]
[343090882,1732345837462,-500.0,0.00052602,120]
[343090883,1732345837473,-500.0,0.00052602,120]
[343090884,1732345837484,-500.0,0.00052602,120]
[343090885,1732345837495,-500.0,0.00052602,120]
[343090886,1732345837504,-505.21320469,0.00052602,120]
[343090887,1732345837514,-500.0,0.00052602,120]
[343090888,1732345837524,-500.0,0.00052602,120]
[343090889,1732345837533,-500.0,0.00052602,120]
[343090890,1732345837543,-500.0,0.00052602,120]
[343090891,1732345837553,-500.0,0.00052602,120]
[343090892,1732345837563,-506.91985916,0.00052602,120]
[343090893,1732345837573,-500.0,0.00052602,120]
[343090894,1732345837582,-500.0,0.00052602,120]
[343090895,1732345837591,-520.17048914,0.00052602,120]
[343090896,1732345837601,-500.0,0.00052602,120]
[343090897,1732345837610,-500.0,0.00052602,120]
[343090898,1732345837619,-500.0,0.00052602,120]
[343090899,1732345837631,-500.0,0.00052602,120]
[343090900,1732345837640,-529.82557187,0.00052602,120]
[343090901,1732345837650,-500.0,0.00052602,120]
[343090902,1732345837659,-500.0,0.00052602,120]
[343090903,1732345837669,-500.0,0.00052602,120]
[343090904,1732345837678,-500.0,0.00052602,120]
[343090905,1732345837687,-500.0,0.00052602,120]
[343090906,1732345837696,-528.4975587,0.00052602,120]
[343090907,1732345837707,-500.0,0.00052602,21]
[343090908,1732345837716,-500.0,0.00052602,120]
[343090909,1732345837725,-500.0,0.00052602,120]
[343090910,1732345837735,-500.0,0.00052602,120]
[343090911,1732345837745,-500.0,0.00052602,120]
[343090912,1732345837757,-500.0,0.00052602,120]
[343090913,1732345837766,-500.0,0.00052602,120]
[343090914,1732345837775,-500.0,0.00052602,120]
[343090915,1732345837784,-500.0,0.00052602,120]
[343090916,1732345837794,-500.0,0.00052602,120]
[343090917,1732345837803,-500.0,0.00052602,120]
[343090918,1732345837813,-551.10451775,0.00052602,120]
[343090919,1732345837823,-500.0,0.00052602,120]
[343090920,1732345837832,-1000.0,0.00052602,120]
[343090921,1732345837842,-533.7386604,0.00052602,120]
[343090922,1732345837852,-1000.0,0.00052602,120]
[343090923,1732345837964,-500.0,0.00052602,120]
[343090924,1732345837974,-500.0,0.00052602,120]
[343090925,1732345837984,-538.41662271,0.00052602,120]
[343090926,1732345837994,-500.0,0.00052602,120]
[343090927,1732345838003,-500.0,0.00052602,120]
[343090928,1732345838013,-500.0,0.00052602,120]
[343090929,1732345838023,-500.0,0.00052602,120]
[343090930,1732345838032,-506.07590047,0.00052602,120]
[343090931,1732345838041,-500.0,0.00052602,120]
[343090932,1732345838051,-500.0,0.00052602,120]
[343090933,1732345838060,-500.0,0.00052602,120]
[343090934,1732345838070,-500.0,0.00052602,120]
[343090935,1732345838080,-500.0,0.00052602,120]
[343090936,1732345838090,-500.0,0.00052602,120]
[343090937,1732345838099,-500.0,0.00052602,120]
[343090938,1732345838109,-500.0,0.00052602,120]
[343090939,1732345838118,-500.0,0.00052602,120]
[343090940,1732345838128,-584.8,0.00052602,120]
[343090941,1732345838138,-500.0,0.00052602,120]
[343090942,1732345838147,-500.0,0.00052602,120]
[343090943,1732345838156,-584.8,0.00052602,120]
[343090944,1732345838166,-500.0,0.00052602,120]
[343090945,1732345838175,-402.67484868,0.00052602,120]
[343090946,1732345838184,-584.8,0.00052602,120]
[343090947,1732345838194,-500.0,0.00052602,120]
[343090948,1732345838203,-584.8,0.00052602,120]
[343090949,1732345838212,-500.0,0.00052602,120]
[343090950,1732345838221,-584.8,0.00052602,120]
[343090951,1732345838231,-825.05467425,0.00052602,120]
[343090953,1732345838240,-500.0,0.00052602,120]
[343090955,1732345838249,-500.0,0.00052602,120]
[343090956,1732345838259,-500.0,0.00052602,120]
[343090957,1732345838268,-500.0,0.00052602,120]
[343090958,1732345838277,-500.0,0.00052602,120]
[343090959,1732345838286,-500.0,0.00052602,7]
[343090960,1732345838295,-500.0,0.00052602,7]
[343090961,1732345838304,-500.0,0.00052602,120]
[343090962,1732345838313,-500.0,0.00052602,120]
[343090963,1732345838323,-500.0,0.00052602,120]
[343090964,1732345838332,-500.0,0.00052602,120]
[343090965,1732345838342,-610.75,0.00052602,120]
[343090966,1732345838352,-500.0,0.00052602,120]
[343090967,1732345838361,-500.0,0.00052602,120]
[343090968,1732345838370,-524.47043094,0.00052602,120]
[343090969,1732345838381,-500.0,0.00052602,120]
[343090970,1732345838391,-500.0,0.00052602,120]
[343090971,1732345838400,-559.21760442,0.00052602,120]
[343090972,1732345838410,-500.0,0.00052602,120]
[343090973,1732345838419,-500.0,0.00052602,120]
[343090974,1732345838429,-500.0,0.00052602,120]
[343090975,1732345838438,-500.0,0.00052602,120]
[343090976,1732345838447,-500.0,0.00052602,120]
[343090977,1732345838457,-500.0,0.00052602,120]
[343090978,1732345838466,-500.0,0.00052602,120]
[343090979,1732345838476,-500.0,0.00052602,120]
[343090980,1732345838489,-649.27052917,0.00052602,120]
[343090981,1732345838498,-500.0,0.00052602,120]
[343090982,1732345838508,-500.0,0.00052602,120]
[343090983,1732345838517,-500.0,0.00052602,120]
[343090984,1732345838527,-500.0,0.00052602,120]
[343090985,1732345838539,-500.0,0.00052602,120]
[343090986,1732345838549,-500.0,0.00052602,120]
[343090987,1732345838565,-500.0,0.00052602,120]
[343090988,1732345838575,-500.0,0.00052602,120]
[343090989,1732345838591,-384.22316239,0.00052602,120]
[343090990,1732345838600,-500.0,0.00052602,120]
[343090991,1732345838610,-500.0,0.00052602,120]
[343090992,1732345838619,-500.0,0.00052602,120]
[343090993,1732345838631,-500.0,0.00052602,120]
[343090994,1732345838641,-500.0,0.00052602,120]
[343090995,1732345838650,-542.96289732,0.00052602,120]